bitfinex/quotes_SOLUSD_20250316
["timestamp","ask_amount","ask_price","bid_price","bid_amount"]
[1742124639034,8.12,131.5,131.47,12.171]
[1742124639344,8.1,131.52,131.48,6.1183]
[1742124639840,0.03,131.53,131.51,20.0]
[1742124641432,0.03,131.53,131.48,6.1183]
[1742124644514,0.03,131.53,131.45,6.3704]
[1742124645323,0.03,131.53,131.48,20.0]
[1742124646440,0.03,131.53,131.48,20.0]
[1742124653857,0.03,131.53,131.49,0.14216157]
[1742124654038,0.03,131.53,131.49,0.28432314]
[1742124654438,0.03,131.53,131.52,20.0]
[1742124654962,0.03,131.53,131.52,0.14216157]
[1742124656159,0.03,131.58,131.56,0.14216157]
[1742124656448,0.03,131.58,131.55,20.0]
[1742124657027,0.03,131.58,131.57,0.5]
[1742124657228,0.03,131.58,131.57,38.07901043]
[1742124659029,0.03,131.58,131.57,431.57901043]
[1742124659652,0.03,131.58,131.57,412.42936157]
[1742124659846,0.03,131.58,131.57,412.57152314]
[1742124661358,0.03,131.58,131.57,6.3704]
[1742124661670,8.13,131.58,131.52,6.291]
[1742124662432,8.13,131.58,131.49,6.291]
[1742124662637,18.64964886,131.57,131.52,20.0]
[1742124663031,18.64964886,131.57,131.49,6.291]
[1742124663547,26.25024886,131.57,131.49,6.291]
[1742124663760,18.64964886,131.57,131.49,6.291]
[1742124664061,18.64964886,131.57,131.52,20.0]
[1742124664643,18.64964886,131.57,131.49,6.291]
[1742124664959,18.64964886,131.54,131.46,81.5]
[1742124665132,8.1,131.53,131.48,20.0]
[1742124665556,8.1,131.53,131.45,6.43316157]
[1742124665733,18.64964886,131.52,131.48,20.0]
[1742124666435,8.1,131.53,131.46,0.28432314]
[1742124666648,8.1,131.53,131.48,20.0]
[1742124666955,8.1,131.52,131.48,20.0]
[1742124667337,8.1,131.52,131.49,20.0]
[1742124668044,12.6167,131.58,131.5,0.28432314]
[1742124668241,26.72964886,131.57,131.49,413.5]
[1742124668437,18.64964886,131.56,131.49,413.5]
[1742124668834,18.933972,131.56,131.45,87.791]
[1742124669063,18.933972,131.56,131.45,6.291]
[1742124669749,18.64964886,131.56,131.48,20.0]
[1742124670065,18.933972,131.56,131.48,20.0]
[1742124671473,18.64964886,131.56,131.48,20.0]
[1742124671766,18.933972,131.56,131.48,20.0]
[1742124672669,12.7309,131.55,131.48,20.0]
[1742124672957,18.933972,131.52,131.44,0.063]
[1742124673136,18.933972,131.5,131.44,0.063]
[1742124673632,12.7309,131.49,131.44,0.063]
[1742124675260,18.933972,131.48,131.44,0.063]
[1742124675640,26.539972,131.48,131.44,0.063]
[1742124675836,0.14216157,131.46,131.44,0.063]
[1742124676042,26.72964886,131.45,131.44,0.063]
[1742124677445,0.28432314,131.43,131.35,2.3511]
[1742124677842,18.64964886,131.44,131.35,2.3511]
[1742124678255,18.64964886,131.44,131.35,22.3511]
[1742124678460,18.64964886,131.44,131.35,2.3511]
[1742124678647,18.64964886,131.44,131.35,314.3511]
[1742124679049,18.64964886,131.44,131.38,20.0]
[1742124680157,12.7309,131.45,131.38,20.0]
[1742124680573,8.08,131.44,131.39,20.0]
[1742124680871,26.72964886,131.44,131.39,20.0]
[1742124681058,26.72964886,131.44,131.38,20.0]
[1742124682474,8.08,131.43,131.38,20.0]
[1742124685667,8.08,131.43,131.36,20.0]
[1742124685861,8.08,131.43,131.38,20.0]
[1742124686456,8.08,131.42,131.38,332.0]
[1742124687479,8.08,131.42,131.38,20.0]
[1742124690783,8.08,131.42,131.36,20.0]
[1742124691152,8.08,131.42,131.38,0.063]
[1742124691874,8.08,131.41,131.38,20.063]
[1742124692072,8.08,131.41,131.39,20.0]
[1742124692282,12.7309,131.45,131.39,20.0]
[1742124692472,8.08,131.42,131.39,20.0]
[1742124692775,8.08,131.42,131.38,0.063]
[1742124692950,8.08,131.42,131.38,20.063]
[1742124693772,8.08,131.42,131.38,0.063]
[1742124696076,18.64964886,131.43,131.38,0.063]
[1742124696285,8.08,131.41,131.38,0.063]
[1742124699775,8.08,131.41,131.39,0.28432314]
[1742124700164,8.08,131.41,131.4,20.0]
[1742124700558,8.08,131.41,131.4,22.251]
[1742124701957,8.08,131.44,131.42,20.0]
[1742124702175,8.08,131.44,131.42,332.0]
[1742124702365,8.08,131.46,131.42,20.0]
[1742124703361,6.038,131.48,131.42,20.0]
[1742124703555,8.08,131.47,131.42,20.0]
[1742124703757,0.03,131.48,131.42,20.0]
[1742124703985,0.03,131.48,131.43,20.0]
[1742124704287,0.03,131.48,131.44,20.0]
[1742124704664,0.03,131.48,131.46,21.5896]
[1742124705263,0.03,131.48,131.47,20.0]
[1742124707686,0.03,131.48,131.47,20.28432314]
[1742124708488,0.03,131.48,131.46,1.5896]
[1742124708489,0.03,131.48,131.46,21.5896]
[1742124709504,0.03,131.48,131.43,1.5896]
[1742124709505,8.08,131.47,131.43,1.5896]
[1742124709668,8.08,131.47,131.45,20.0]
[1742124710091,8.08,131.47,131.44,20.0]
[1742124710271,8.08,131.47,131.43,1.5896]
[1742124710272,6.316,131.46,131.39,0.28432314]
[1742124710477,6.316,131.46,131.4,20.0]
[1742124710783,6.316,131.46,131.42,20.0]
[1742124711364,6.316,131.46,131.41,20.0]
[1742124711569,18.64964886,131.45,131.41,20.0]
[1742124711978,18.64964886,131.45,131.38,21.6526]
[1742124712198,18.64964886,131.45,131.38,1.6526]
[1742124712496,18.64964886,131.45,131.38,21.6526]
[1742124713868,18.64964886,131.45,131.38,1.6526]
[1742124714096,0.28432314,131.44,131.38,1.6526]
[1742124714288,0.28432314,131.44,131.38,0.063]
[1742124715700,18.64964886,131.45,131.38,0.063]
[1742124716000,8.08,131.44,131.38,0.063]
[1742124716203,8.08,131.44,131.38,20.063]
[1742124716703,18.64964886,131.43,131.38,0.063]
[1742124718774,18.64964886,131.4,131.38,0.063]
[1742124718975,8.08,131.39,131.38,0.063]
[1742124720597,27.013972,131.39,131.38,0.063]
[1742124720905,26.72964886,131.39,131.38,0.063]
[1742124723298,27.013972,131.39,131.38,0.063]
[1742124723605,18.933972,131.38,131.35,0.063]
[1742124723905,0.28432314,131.38,131.35,0.063]
[1742124725798,15.691,131.39,131.33,0.063]
[1742124725799,18.933972,131.34,131.33,0.063]
[1742124726001,18.933972,131.32,131.31,0.03]
[1742124726615,26.548872,131.32,131.31,0.03]
[1742124727405,26.548872,131.32,131.24,0.063]
[1742124727406,20.0,131.28,131.24,0.063]
[1742124727611,18.64964886,131.25,131.24,0.063]
[1742124728106,26.552972,131.25,131.24,0.063]
[1742124728313,26.552972,131.25,131.16,44.63210358]
[1742124728314,20.0,131.22,131.16,44.63210358]
[1742124728614,18.933972,131.2,131.16,43.00510358]
[1742124728911,18.64964886,131.2,131.16,43.00510358]
[1742124729113,6.1216,131.21,131.16,43.00510358]
[1742124729114,18.64964886,131.18,131.16,43.00510358]
[1742124729494,18.64964886,131.18,131.11,1.627]
[1742124729495,0.28432314,131.17,131.11,1.627]
[1742124730705,6.1216,131.24,131.12,50.28432314]
[1742124731012,8.08,131.27,131.16,0.28432314]
[1742124731213,20.0,131.24,131.11,17.4517228]
[1742124731515,20.0,131.24,131.1,12.40275743]
[1742124731516,0.28432314,131.21,131.1,11.90275743]
[1742124731810,18.64964886,131.19,131.1,11.90275743]
[1742124732386,0.28432314,131.18,131.1,11.90275743]
[1742124733486,0.28432314,131.15,131.09,1.627]
[1742124733814,8.08,131.14,131.09,1.627]
[1742124734512,201.46,131.2,131.11,20.0]
[1742124734513,8.08,131.13,131.11,20.0]
[1742124735918,8.08,131.13,131.09,1.627]
[1742124736922,8.08,131.13,131.09,29.2552]
[1742124737225,8.08,131.15,131.09,333.627]
[1742124738122,8.08,131.15,131.09,1.627]
[1742124739699,8.08,131.15,131.11,0.03]
[1742124741619,18.64964886,131.14,131.11,0.03]
[1742124741795,18.933972,131.14,131.11,0.03]
[1742124742918,18.933972,131.14,131.06,1.6087]
[1742124744518,18.64964886,131.14,131.06,1.6087]
[1742124745027,14.4726,131.15,131.07,20.0]
[1742124745520,18.64964886,131.14,131.06,1.6087]
[1742124746018,0.28432314,131.13,131.06,1.6087]
[1742124748425,7.91032314,131.13,131.06,1.6087]
[1742124748638,0.28432314,131.11,131.06,1.6087]
[1742124748808,8.08,131.1,131.04,2.6984589]
[1742124749119,22.85,131.14,131.04,2.6984589]
[1742124749120,8.08,131.18,131.09,1.5073]
[1742124749326,8.08,131.18,131.1,0.28432314]
[1742124749511,8.08,131.18,131.13,20.0]
[1742124749915,8.08,131.25,131.17,20.0]
[1742124750621,8.08,131.25,131.15,20.0]
[1742124751037,8.08,131.25,131.16,0.28432314]
[1742124751205,8.08,131.25,131.19,20.0]
[1742124751725,0.063,131.25,131.19,332.0]
[1742124751920,0.063,131.25,131.2,1.5073]
[1742124753416,0.063,131.25,131.2,9.129]
[1742124753618,0.063,131.25,131.21,20.0]
[1742124753816,0.063,131.25,131.2,1.5073]
[1742124754638,0.063,131.25,131.2,21.5073]
[1742124754821,0.063,131.25,131.2,25.41268217]
[1742124755326,0.063,131.25,131.2,337.41268217]
[1742124758037,0.063,131.25,131.2,1.5073]
[1742124758234,0.34732314,131.25,131.14,1.5073]
[1742124758436,18.996972,131.25,131.16,20.0]
[1742124758740,18.71264886,131.25,131.16,20.0]
[1742124758925,18.71264886,131.25,131.14,1.5073]
[1742124759125,18.71264886,131.25,131.16,20.0]
[1742124760239,18.71264886,131.25,131.16,27.6242]
[1742124760541,0.28432314,131.24,131.16,20.0]
[1742124760837,0.28432314,131.24,131.14,5.26255635]
[1742124760838,0.28432314,131.24,131.14,12.88785635]
[1742124761014,0.063,131.25,131.14,324.88785635]
[1742124761340,18.71264886,131.25,131.14,324.88785635]
[1742124761644,18.71264886,131.25,131.14,12.88785635]
[1742124762026,6.1473,131.24,131.14,12.88785635]
[1742124762225,18.64964886,131.23,131.14,5.26255635]
[1742124762424,0.28432314,131.22,131.14,5.26255635]
[1742124762621,6.5214,131.31,131.24,20.0]
[1742124762842,18.10725497,131.42,131.28,20.28432314]
[1742124762843,6.5844,131.39,131.28,20.28432314]
[1742124763028,0.063,131.39,131.33,20.0]
[1742124763224,0.063,131.39,131.28,81.5]
[1742124763521,0.063,131.39,131.31,20.0]
[1742124763737,0.063,131.39,131.32,20.0]
[1742124763938,0.063,131.39,131.29,7.6165]
[1742124764532,0.063,131.39,131.29,319.6165]
[1742124765474,0.063,131.39,131.29,323.3876735]
[1742124765751,0.063,131.39,131.29,323.3878735]
[1742124766050,0.14216157,131.4,131.3,72.37168605]
[1742124766221,8.06,131.38,131.3,72.37168605]
[1742124766426,8.06,131.37,131.3,72.37168605]
[1742124766642,8.06,131.37,131.3,62.03287376]
[1742124767051,8.06,131.37,131.3,56.86346762]
[1742124768641,8.06,131.37,131.3,64.47956762]
[1742124768835,18.79181043,131.41,131.3,64.47956762]
[1742124768836,18.79181043,131.43,131.31,0.14216157]
[1742124769043,18.64964886,131.41,131.33,20.0]
[1742124769828,0.14216157,131.4,131.3,36.18584303]
[1742124770758,0.28432314,131.4,131.3,36.18584303]
[1742124771826,30.74472314,131.4,131.3,36.18584303]
[1742124772139,25.31321043,131.35,131.3,36.18584303]
[1742124772336,18.64964886,131.33,131.3,36.18584303]
[1742124772822,18.64964886,131.33,131.26,1.564]
[1742124773028,8.06,131.34,131.26,1.564]
[1742124773029,0.48668794,131.34,131.26,1.564]
[1742124773446,8.10048794,131.34,131.26,1.564]
[1742124773753,8.06,131.33,131.26,1.564]
[1742124773932,0.14216157,131.32,131.26,1.564]
[1742124774135,0.28432314,131.32,131.26,1.564]
[1742124775634,20.0,131.3,131.26,1.564]
[1742124775933,18.79181043,131.29,131.21,1.564]
[1742124776131,8.06,131.28,131.21,1.564]
[1742124778232,8.06,131.28,131.21,9.1853]
[1742124778648,8.06,131.28,131.21,321.1853]
[1742124779244,8.06,131.31,131.21,324.93187093]
[1742124779553,8.06,131.31,131.24,20.0]
[1742124779956,8.06,131.32,131.24,20.0]
[1742124780160,8.06,131.32,131.22,0.14216157]
[1742124780334,8.06,131.32,131.24,20.0]
[1742124781231,8.06,131.32,131.22,0.14216157]
[1742124781432,8.06,131.32,131.21,86.81057093]
[1742124781754,0.14216157,131.31,131.21,5.31057093]
[1742124782439,8.06,131.32,131.21,12.93177093]
[1742124782646,8.06,131.32,131.21,324.93177093]
[1742124783051,8.06,131.32,131.22,18.933972]
[1742124783238,8.06,131.32,131.25,7.8451]
[1742124783438,8.06,131.32,131.25,7.3451]
[1742124783945,8.06,131.32,131.26,20.0]
[1742124784161,201.52,131.34,131.26,20.0]
[1742124784959,8.06,131.35,131.26,20.0]
[1742124785360,18.79181043,131.38,131.27,0.14216157]
[1742124785660,8.06,131.37,131.28,20.0]
[1742124786155,8.06,131.37,131.28,332.0]
[1742124786333,8.06,131.37,131.29,1.6537]
[1742124786756,0.063,131.34,131.29,1.6537]
[1742124787550,0.063,131.34,131.29,9.2701]
[1742124787978,0.063,131.34,131.3,0.14216157]
[1742124788160,0.063,131.34,131.33,20.0]
[1742124788565,8.06,131.39,131.34,1.6537]
[1742124790252,207.8472,131.47,131.35,0.14216157]
[1742124790559,8.06,131.46,131.35,0.14216157]
[1742124790940,18.64964886,131.45,131.34,31.58071358]
[1742124791135,0.14216157,131.44,131.35,312.0]
[1742124791638,0.14216157,131.42,131.34,1.6537]
[1742124791841,8.06,131.41,131.34,1.6537]
[1742124792762,18.79181043,131.4,131.34,1.6537]
[1742124793869,6.1139,131.39,131.34,1.6537]
[1742124794171,18.79181043,131.38,131.34,1.6537]
[1742124794666,0.14216157,131.37,131.28,1.6049]
[1742124794960,8.06,131.36,131.28,1.6049]
[1742124798458,18.79181043,131.35,131.28,1.6049]
[1742124799754,7.6138,131.34,131.28,1.6049]
[1742124799963,18.79181043,131.33,131.28,1.6049]
[1742124800161,6.1139,131.32,131.24,1.6349]
[1742124800368,26.993972,131.31,131.24,1.6349]
[1742124800869,0.14216157,131.3,131.24,1.6349]
[1742124801549,8.06,131.31,131.24,1.6349]
[1742124802777,8.06,131.31,131.24,21.6349]
[1742124803076,18.79181043,131.3,131.24,1.6349]
[1742124805572,8.06,131.3,131.24,321.2545]
[1742124806973,8.06,131.3,131.24,313.6349]
[1742124807160,8.06,131.3,131.24,1.6349]
[1742124807558,18.79181043,131.29,131.24,1.6349]
[1742124808082,8.06,131.3,131.24,1.6349]
[1742124808375,8.06,131.3,131.24,21.6349]
[1742124808571,8.06,131.3,131.24,1.6349]
[1742124809162,8.06,131.3,131.24,21.6349]
[1742124809460,29.4639,131.36,131.24,21.6349]
[1742124809461,11.34397495,131.4,131.31,1.6394]
[1742124809660,22.66809996,131.41,131.36,0.14216157]
[1742124809866,45.26868795,131.45,131.39,20.0]
[1742124810055,45.26868795,131.45,131.41,1.6394]
[1742124810387,45.26868795,131.45,131.44,20.0]
[1742124811877,0.03,131.48,131.45,20.0]
[1742124813168,0.03,131.48,131.42,312.0]
[1742124813371,0.03,131.48,131.42,319.6091]
[1742124813558,0.03,131.48,131.42,312.0]
[1742124813760,0.03,131.48,131.45,20.0]
[1742124814078,0.03,131.48,131.42,319.6089]
[1742124815585,201.54,131.51,131.42,319.6089]
[1742124815973,8.103,131.53,131.42,319.6089]
[1742124816879,8.103,131.53,131.43,18.79181043]
[1742124817060,8.103,131.53,131.46,20.0]
[1742124817268,0.063,131.53,131.47,1.6561]
[1742124818668,0.063,131.53,131.47,21.6561]
[1742124819068,0.063,131.53,131.51,20.0]
[1742124820174,0.063,131.53,131.51,332.0]
[1742124820378,0.03,131.58,131.51,332.0]
[1742124820796,26.86181043,131.61,131.51,355.6293714]
[1742124821084,18.933972,131.57,131.48,23.6293714]
[1742124821292,0.28432314,131.54,131.48,23.6293714]
[1742124821470,8.04,131.53,131.48,23.6293714]
[1742124821671,8.04,131.53,131.47,1.6561]
[1742124822674,8.04,131.57,131.49,20.0]
[1742124823479,0.03,131.53,131.49,20.0]
[1742124824383,8.04,131.52,131.48,20.0]
[1742124824987,8.04,131.52,131.47,21.6561]
[1742124826590,8.04,131.52,131.47,1.6561]
[1742124827992,0.28432314,131.51,131.43,1.629]
[1742124828385,18.933972,131.51,131.43,1.629]
[1742124828578,0.14216157,131.49,131.43,1.629]
[1742124828776,0.28432314,131.49,131.43,1.629]
[1742124829791,0.14216157,131.47,131.41,0.063]
[1742124830075,18.933972,131.45,131.41,0.063]
[1742124830591,18.933972,131.43,131.41,0.063]
[1742124832574,7.89342314,131.42,131.41,0.063]
[1742124832784,32.929772,131.42,131.41,0.063]
[1742124833597,14.56886157,131.42,131.41,0.063]
[1742124833809,8.04,131.42,131.41,0.063]
[1742124833999,8.18216157,131.42,131.41,0.063]
[1742124835086,8.04,131.43,131.41,0.063]
[1742124835284,6.3867,131.46,131.41,0.063]
[1742124835602,8.04,131.45,131.41,0.063]
[1742124835799,6.3867,131.46,131.41,0.063]
[1742124836000,14.4267,131.46,131.41,0.063]
[1742124836603,0.14216157,131.45,131.41,0.063]
[1742124836906,26.39931043,131.45,131.41,0.063]
[1742124837094,0.14216157,131.44,131.41,0.063]
[1742124838514,14.4267,131.46,131.41,0.063]
[1742124839020,18.933972,131.45,131.41,0.063]
[1742124840406,38.933972,131.42,131.41,0.063]
[1742124840707,61.783972,131.42,131.41,0.063]
[1742124840923,69.393072,131.42,131.41,0.063]
[1742124841917,22.85,131.4,131.35,1.629]
[1742124842117,0.14216157,131.36,131.3,1.6002]
[1742124843316,0.14216157,131.35,131.3,1.6002]
[1742124843491,8.04,131.34,131.3,1.6002]
[1742124843820,8.04,131.34,131.3,21.6002]
[1742124843998,0.28432314,131.42,131.32,18.64964886]
[1742124844589,0.28432314,131.42,131.32,330.64964886]
[1742124845003,0.28432314,131.42,131.33,7.6142]
[1742124845413,0.28432314,131.42,131.35,20.0]
[1742124845715,0.14216157,131.42,131.35,20.0]
[1742124845906,0.14216157,131.42,131.36,1.6002]
[1742124846102,0.14216157,131.43,131.36,21.6002]
[1742124846810,8.18216157,131.44,131.36,21.6002]
[1742124848050,0.28432314,131.43,131.36,1.6002]
[1742124848792,0.03,131.42,131.36,1.6002]
[1742124851623,0.03,131.42,131.36,9.2128]
[1742124851999,0.03,131.42,131.36,1.6002]
[1742124852208,0.03,131.42,131.37,20.0]
[1742124852810,0.03,131.42,131.38,20.0]
[1742124853202,0.03,131.42,131.4,1.5196]
[1742124853405,0.03,131.42,131.41,20.0]
[1742124853604,0.03,131.42,131.41,26.3938]
[1742124854129,0.03,131.42,131.41,6.3938]
[1742124854316,0.03,131.42,131.41,26.3938]
[1742124854629,201.24,131.48,131.41,25.04344886]
[1742124854802,201.24,131.48,131.42,18.64964886]
[1742124855003,201.24,131.48,131.43,1.5196]
[1742124855202,0.03,131.53,131.45,20.0]
[1742124855436,0.03,131.53,131.47,20.0]
[1742124857238,0.31432314,131.53,131.47,20.0]
[1742124857529,7.91722314,131.53,131.44,312.0]
[1742124858331,49.416872,131.53,131.43,1.5196]
[1742124858516,18.64964886,131.52,131.43,1.5196]
[1742124859523,0.28432314,131.51,131.43,1.5196]
[1742124859834,20.0,131.47,131.43,1.5196]
[1742124860126,0.28432314,131.46,131.43,1.5196]
[1742124860427,28.04,131.47,131.43,1.5196]
[1742124860731,8.04,131.47,131.43,1.5196]
[1742124862735,8.32432314,131.5,131.43,1.5196]
[1742124862936,15.92902314,131.5,131.43,1.5196]
[1742124863231,8.32432314,131.5,131.43,1.5196]
[1742124864132,15.92912314,131.5,131.43,1.5196]
[1742124864516,8.32432314,131.5,131.43,1.5196]
[1742124864718,8.04,131.5,131.43,21.5196]
[1742124864917,8.04,131.5,131.44,20.0]
[1742124865115,0.28432314,131.52,131.44,20.0]
[1742124865513,14.2547,131.53,131.46,20.0]
[1742124865716,0.03,131.53,131.46,20.0]
[1742124866536,0.03,131.53,131.44,46.25764886]
[1742124866714,0.03,131.53,131.44,38.64964886]
[1742124868034,0.03,131.53,131.44,46.25764886]
[1742124870828,0.03,131.53,131.48,20.0]
[1742124871142,0.03,131.53,131.49,26.25454886]
[1742124872825,0.03,131.53,131.51,18.64964886]
[1742124874424,0.03,131.53,131.52,26.25304886]
[1742124876139,0.03,131.53,131.52,18.64964886]
[1742124876332,0.03,131.6,131.55,20.0]
[1742124878346,0.03,131.6,131.56,1.5964]
[1742124883540,0.03,131.6,131.47,1.6622]
[1742124883541,20.0,131.56,131.47,1.6622]
[1742124883737,8.30432314,131.55,131.47,1.6622]
[1742124884642,0.28432314,131.53,131.47,1.6622]
[1742124885750,0.28432314,131.5,131.42,1.6622]
[1742124885939,8.02,131.49,131.42,1.6622]
[1742124886339,8.02,131.49,131.44,20.0]
[1742124886649,6.0307,131.52,131.44,20.0]
[1742124887252,13.6341,131.52,131.44,20.0]
[1742124888641,0.28432314,131.51,131.44,20.0]
[1742124891369,30.73862314,131.51,131.44,20.0]
[1742124891552,0.28432314,131.51,131.44,20.0]
[1742124892254,7.88822314,131.51,131.44,20.0]
[1742124893443,30.73822314,131.51,131.44,20.0]
[1742124895070,7.6062,131.47,131.42,21.6622]
[1742124895368,7.6062,131.47,131.42,1.6622]
[1742124895573,15.91012314,131.48,131.42,1.6622]
[1742124896448,15.91012314,131.48,131.44,0.063]
[1742124896646,8.02,131.48,131.44,0.063]
[1742124897061,0.14216157,131.51,131.44,0.063]
[1742124897254,8.16216157,131.51,131.44,20.063]
[1742124897667,15.76616157,131.51,131.44,20.063]
[1742124898777,0.14216157,131.5,131.44,0.063]
[1742124899146,7.6051,131.49,131.44,0.063]
[1742124899654,0.28432314,131.48,131.44,0.063]
[1742124900974,22.85,131.47,131.44,0.063]
[1742124901165,14.51882314,131.45,131.44,0.063]
[1742124901363,37.36882314,131.45,131.44,0.063]
[1742124903368,22.85,131.49,131.44,0.063]
[1742124903576,6.6271,131.51,131.44,0.063]
[1742124904261,6.6271,131.51,131.44,20.063]
[1742124904468,6.6271,131.51,131.45,1.5679]
[1742124906089,0.03,131.53,131.45,21.5679]
[1742124906692,0.03,131.53,131.45,29.1753]
[1742124906994,0.14216157,131.46,131.44,0.063]
[1742124907198,232.43432314,131.45,131.44,0.063]
[1742124908596,251.083972,131.45,131.44,0.063]
[1742124909088,258.691372,131.45,131.44,0.063]
[1742124909866,269.08885039,131.45,131.44,0.063]
[1742124910195,275.3215828,131.45,131.44,0.063]
[1742124910898,275.8215828,131.45,131.44,0.063]
[1742124911205,275.8215828,131.45,131.41,0.063]
[1742124911206,23.13432314,131.42,131.41,0.063]
[1742124911496,61.783972,131.42,131.41,0.063]
[1742124911667,69.393072,131.42,131.41,0.063]
[1742124912409,244.9488108,131.45,131.41,0.063]
[1742124912410,201.28,131.45,131.41,0.063]
[1742124913211,201.28,131.45,131.42,1.5967]
[1742124916699,0.28432314,131.44,131.42,1.5967]
[1742124918096,7.89252314,131.44,131.42,1.5967]
[1742124918294,15.91252314,131.44,131.42,1.5967]
[1742124918603,15.91252314,131.44,131.41,0.063]
[1742124918792,20.28432314,131.42,131.41,0.063]
[1742124919375,20.0,131.42,131.41,0.063]
[1742124919598,0.14216157,131.43,131.41,0.063]
[1742124920282,7.75086157,131.43,131.41,0.063]
[1742124920500,0.14216157,131.42,131.41,0.063]
[1742124920807,23.13432314,131.42,131.41,0.063]
[1742124922108,7.89342314,131.42,131.41,0.063]
[1742124922596,49.393072,131.42,131.41,0.063]
[1742124923003,55.758072,131.42,131.41,0.063]
[1742124928108,55.758072,131.42,131.41,0.0001]
[1742124929300,22.85,131.37,131.34,1.5967]
[1742124929495,0.28432314,131.35,131.31,0.063]
[1742124933510,201.58216157,131.38,131.31,0.063]
[1742124933699,232.04376157,131.38,131.31,0.063]
[1742124934793,224.43216157,131.38,131.31,0.063]
[1742124934994,0.14216157,131.37,131.31,0.063]
[1742124936007,201.44,131.38,131.31,0.063]
[1742124936201,201.44,131.38,131.32,7.8338]
[1742124937716,8.02,131.41,131.33,7.6144]
[1742124938303,0.28432314,131.4,131.32,15.4485]
[1742124942020,7.89472314,131.4,131.32,15.4485]
[1742124942237,0.28432314,131.4,131.32,15.4485]
[1742124944520,0.28432314,131.4,131.33,1.6218]
[1742124946402,20.0,131.37,131.33,1.6218]
[1742124946615,8.0,131.36,131.33,1.6218]
[1742124946821,0.28432314,131.35,131.33,1.6218]
[1742124947125,0.14216157,131.35,131.33,1.6218]
[1742124947314,0.28432314,131.35,131.33,1.6218]
[1742124948323,7.89762314,131.35,131.33,1.6218]
[1742124948925,20.28432314,131.32,131.31,0.063]
[1742124949225,61.783972,131.32,131.31,0.063]
[1742124950228,69.398872,131.32,131.31,0.063]
[1742124950532,41.783972,131.31,131.3,0.0001]
[1742124950734,56.077472,131.31,131.3,0.0001]
[1742124951232,26.933972,131.31,131.3,0.0001]
[1742124951616,8.28432314,131.31,131.3,0.0001]
[1742124952405,15.89982314,131.31,131.3,0.0001]
[1742124953114,8.28432314,131.31,131.3,0.0001]
[1742124953312,8.0,131.31,131.3,0.0001]
[1742124955527,8.28432314,131.31,131.3,0.0001]
[1742124955725,15.89982314,131.31,131.3,0.0001]
[1742124956122,8.28432314,131.31,131.3,0.0001]
[1742124956320,15.89982314,131.31,131.3,0.0001]
[1742124956715,8.28432314,131.31,131.3,0.0001]
[1742124958441,15.89982314,131.31,131.3,0.0001]
[1742124960430,34.549472,131.31,131.3,0.0001]
[1742124960729,23.13432314,131.31,131.3,0.0001]
[1742124960914,8.14216157,131.34,131.3,0.0001]
[1742124961720,0.14216157,131.33,131.3,0.0001]